bitfinex/quotes_ETHUSD_20240917
["timestamp","ask_amount","ask_price","bid_price","bid_amount"]
[1726613133317,2.2221519,2346.2,2345.9,2.4684]
[1726613133318,1.77161182,2346.2,2345.9,2.4684]
[1726613133614,3.76540319,2346.2,2345.9,2.4684]
[1726613133819,1.3342705,2346.0,2345.6,4.26313]
[1726613134022,1.3342705,2346.0,2345.7,2.4684]
[1726613134384,1.3342705,2345.9,2345.7,2.4684]
[1726613135701,1.3342705,2345.9,2345.7,6.73137]
[1726613136014,1.3342705,2346.1,2345.9,4.26275]
[1726613136176,1.77161182,2346.2,2346.0,4.26257]
[1726613136177,1.3342705,2346.2,2346.0,4.26257]
[1726613138406,1.3342705,2346.3,2346.0,4.26257]
[1726613139341,1.3342705,2346.2,2345.9,2.3599]
[1726613139792,1.3342705,2346.1,2345.9,2.3599]
[1726613139990,1.3342705,2346.2,2345.9,2.3599]
[1726613140425,1.3342705,2346.1,2345.9,2.3599]
[1726613140637,11.90845951,2346.3,2345.9,6.62264]
[1726613140638,1.3342705,2346.2,2345.9,6.62264]
[1726613141308,5.5964005,2346.3,2345.9,6.62264]
[1726613141632,7.20897019,2346.3,2345.9,6.62264]
[1726613141837,1.3342705,2346.3,2346.0,4.26255]
[1726613141996,1.3342705,2346.3,2346.1,4.26236]
[1726613142494,1.3342705,2346.3,2346.0,4.26255]
[1726613143338,5.5963105,2346.3,2345.9,6.62263]
[1726613143498,2.68590423,2346.2,2345.9,6.62263]
[1726613145325,2.68590423,2346.2,2345.9,6.62257]
[1726613145508,1.3342705,2346.3,2345.9,6.62257]
[1726613145718,1.3342705,2346.3,2345.9,10.88523]
[1726613146196,1.3342705,2346.3,2345.9,10.88522]
[1726613147338,1.3342705,2346.4,2346.2,4.26212]
[1726613147514,1.3342705,2346.5,2346.3,2.3061]
[1726613148303,3.26443182,2346.5,2346.3,2.3061]
[1726613148808,1.93016132,2346.5,2346.3,2.3061]
[1726613153168,1.93016132,2346.5,2346.2,4.26212]
[1726613153348,1.93016132,2346.5,2346.1,6.56369]
[1726613153558,2.4811,2346.4,2346.0,4.26257]
[1726613153869,3.23369418,2346.4,2346.0,4.26257]
[1726613154030,3.23369418,2346.4,2346.1,4.26233]
[1726613155359,2.4811,2346.4,2346.1,4.26233]
[1726613156569,5.5959905,2346.5,2346.1,4.26233]
[1726613156731,7.8754905,2346.5,2346.1,4.26233]
[1726613160794,3.6137705,2346.5,2346.2,4.26213]
[1726613161101,5.5957705,2346.6,2346.3,2.4181]
[1726613162290,7.41485415,2346.6,2346.3,2.4181]
[1726613162900,7.41485415,2346.6,2346.1,6.51843]
[1726613163102,2.4252,2346.5,2346.1,6.51843]
[1726613164394,6.68694,2346.5,2346.1,6.5184]
[1726613164596,8.0212105,2346.5,2346.1,6.51839]
[1726613164785,9.43138992,2346.5,2346.1,6.51839]
[1726613164996,6.68694,2346.5,2346.1,10.7807]
[1726613165293,8.0212105,2346.5,2346.1,10.7807]
[1726613165513,8.0212105,2346.5,2346.1,6.51839]
[1726613165660,8.0212105,2346.5,2346.1,4.26229]
[1726613165862,5.5961305,2346.4,2346.0,4.26246]
[1726613166169,1.16792873,2346.4,2346.1,4.26237]
[1726613166377,8.0211705,2346.5,2346.1,4.26237]
[1726613167413,1.3342705,2346.4,2346.1,4.26237]
[1726613168902,3.7594705,2346.5,2346.2,4.2621]
[1726613169998,1.3342705,2346.4,2346.1,4.26237]
[1726613170158,1.3342705,2346.4,2346.1,8.52474]
[1726613170362,1.3342705,2346.4,2346.1,4.26237]
[1726613173517,1.3342705,2346.3,2346.1,4.26237]
[1726613175624,1.3342705,2346.3,2346.1,8.52469]
[1726613176249,1.3342705,2346.2,2346.1,4.2623]
[1726613178248,3.99753301,2346.3,2346.1,4.2623]
[1726613178448,1.77161182,2346.2,2346.1,4.2623]
[1726613179430,1.77161182,2346.2,2346.0,4.26249]
[1726613179634,1.33741208,2346.1,2346.0,4.26249]
[1726613180334,1.77161182,2346.2,2346.0,4.26249]
[1726613180651,1.33760014,2346.1,2346.0,4.26249]
[1726613181362,1.77161182,2346.2,2346.0,4.26249]
[1726613181536,1.33787717,2346.1,2346.0,4.26249]
[1726613182556,1.33792884,2346.1,2346.0,4.26249]
[1726613183245,1.33792884,2346.1,2346.0,6.58959]
[1726613183447,1.33792884,2346.2,2346.1,8.52478]
[1726613183678,1.77161182,2346.2,2346.1,4.26239]
[1726613183976,1.77161182,2346.2,2346.0,8.52489]
[1726613184187,1.33795674,2346.1,2346.0,4.26242]
[1726613187339,1.33795674,2346.1,2346.0,8.52499]
[1726613191269,1.77161182,2346.1,2346.0,4.26242]
[1726613191767,1.77161182,2346.2,2346.1,4.26239]
[1726613192372,4.55565593,2346.3,2346.1,4.26239]
[1726613193387,2.22995593,2346.2,2346.1,4.26239]
[1726613195617,2.23073321,2346.2,2346.1,4.26239]
[1726613196239,2.23073321,2346.2,2345.8,6.58994]
[1726613196414,4.12880868,2345.9,2345.4,5.2919]
[1726613196600,1.78439883,2345.8,2345.7,4.26299]
[1726613196924,1.78439883,2345.8,2345.5,4.26336]
[1726613197087,3.6824967,2345.6,2345.3,4.26379]
[1726613197305,1.3382152,2345.5,2345.1,4.26419]
[1726613197504,1.3382152,2345.5,2345.3,4.26384]
[1726613197505,1.3382152,2345.4,2345.3,4.26384]
[1726613197704,1.3382152,2345.5,2345.3,4.26384]
[1726613197921,1.3382152,2345.5,2345.4,4.26366]
[1726613198129,1.3382152,2345.6,2345.4,4.26366]
[1726613198293,1.3382152,2345.6,2345.3,4.26384]
[1726613198495,1.3382152,2345.5,2345.3,4.26375]
[1726613199596,1.3382152,2345.6,2345.5,4.26348]
[1726613199801,1.3382152,2345.7,2345.5,4.26348]
[1726613200304,1.3382152,2345.8,2345.6,4.2633]
[1726613200938,1.3382152,2345.7,2345.6,4.2633]
[1726613201269,1.3382152,2345.8,2345.6,4.2633]
[1726613204117,1.3382152,2345.8,2345.6,10.98961]
[1726613204831,1.3382152,2345.8,2345.6,10.9895]
[1726613205034,1.3382152,2345.8,2345.6,6.7263]
[1726613207964,1.3382152,2345.8,2345.6,4.2632]
[1726613214168,1.3382152,2345.8,2345.6,4.26328]
[1726613214867,8.0338452,2345.7,2345.3,4.26376]
[1726613215072,8.0338452,2345.7,2345.3,4.26375]
[1726613215273,6.69563,2345.7,2345.3,4.26375]
[1726613218626,6.69563,2345.7,2345.2,4.264]
[1726613219173,2.4897,2345.5,2345.1,4.26406]
[1726613219475,2.4897,2345.5,2345.1,8.52818]
[1726613219970,2.4897,2345.5,2345.2,4.26399]
[1726613221553,2.4897,2345.5,2345.3,4.26379]
[1726613221745,6.53053,2345.7,2345.3,4.26379]
[1726613225079,8.75265746,2345.7,2345.3,4.26379]
[1726613226161,8.75265746,2345.7,2345.2,4.264]
[1726613227379,8.75265746,2345.7,2345.3,4.26383]
[1726613227602,6.53053,2345.7,2345.3,4.26383]
[1726613227786,2.2674,2345.7,2345.3,4.26383]
[1726613228474,6.53053,2345.7,2345.2,4.264]
[1726613232097,4.26333,2345.6,2345.2,4.264]
[1726613232315,6.53053,2345.7,2345.2,4.264]
[1726613232603,6.53053,2345.7,2345.2,5.356132]
[1726613233001,10.79374,2345.7,2345.2,5.356132]
[1726613233602,4.26336,2345.6,2345.2,5.356132]
[1726613233759,4.26336,2345.6,2345.2,4.264]
[1726613233963,4.26336,2345.6,2345.1,4.26418]
[1726613237972,6.04775883,2345.6,2345.1,4.26418]
[1726613240815,2.2685,2345.5,2345.1,4.26418]
[1726613241533,2.2685,2345.2,2344.9,4.26453]
[1726613243893,1.78439883,2345.3,2344.9,8.52901]
[1726613244087,1.78439883,2345.3,2344.9,4.26448]
[1726613244845,1.78439883,2345.3,2344.9,8.52897]
[1726613245285,8.40686883,2345.4,2344.9,8.52897]
[1726613245479,8.40686883,2345.4,2344.9,9.14901422]
[1726613246382,1.78439883,2345.4,2345.1,2.4906]
[1726613246528,6.04787883,2345.5,2345.1,2.4906]
[1726613248006,4.26367,2345.4,2345.1,2.4906]
[1726613249730,6.04806883,2345.4,2345.1,2.4906]
[1726613250034,4.26367,2345.4,2345.1,2.4906]
[1726613250936,1.78439883,2345.5,2345.1,7.89510454]
[1726613251236,1.78439883,2345.6,2345.3,4.26383]
[1726613251445,1.78439883,2345.7,2345.5,4.26348]
[1726613251613,1.78439883,2345.7,2345.5,5.54356876]
[1726613251814,9.64581588,2345.8,2345.5,5.54356876]
[1726613251815,9.20439883,2345.8,2345.5,5.54356876]
[1726613251999,1.78439883,2345.8,2345.5,5.54356876]
[1726613252639,1.78439883,2345.8,2345.5,1.28008876]
[1726613254231,1.78439883,2345.8,2345.5,5.54352876]
[1726613255627,1.78439883,2345.8,2345.5,1.28008876]
[1726613256644,1.78439883,2345.7,2345.5,1.28008876]
[1726613257231,1.78439883,2345.7,2345.5,5.54352876]
[1726613257538,1.78439883,2345.7,2345.4,2.3021]
[1726613258140,1.78439883,2345.7,2345.4,6.56574]
[1726613262359,1.78439883,2345.7,2345.4,8.45220498]
[1726613262654,1.78439883,2345.7,2345.4,6.56574]
[1726613264651,4.07829883,2345.7,2345.4,4.26364]
[1726613265170,1.78439883,2345.5,2345.2,6.69882]
[1726613265327,6.04769883,2345.6,2345.2,6.69882]
[1726613270099,10.31111883,2345.6,2345.2,6.69882]
[1726613270251,4.2635,2345.5,2345.2,3.0]
[1726613270572,1.78439883,2345.5,2345.2,3.0]
[1726613272167,2.4127,2345.4,2345.2,3.0]
[1726613273566,2.4127,2345.4,2345.1,3.0]
[1726613273976,6.6764,2345.4,2345.1,3.0]
[1726613275286,6.6764,2345.4,2345.0,6.61234]
[1726613275494,9.95606633,2345.4,2345.0,6.61234]
[1726613276089,8.46079883,2345.4,2345.0,6.61234]
[1726613279750,4.19709883,2345.4,2345.0,10.87665]
[1726613279960,6.04795883,2345.5,2345.1,4.26413]
[1726613280754,6.04795883,2345.5,2345.1,6.15059498]
[1726613281057,1.78439883,2345.4,2345.1,6.15059498]
[1726613281260,6.04795883,2345.5,2345.1,6.15059498]
[1726613282655,6.04795883,2345.5,2345.1,4.26413]
[1726613283171,1.78439883,2345.5,2345.2,4.26393]
[1726613283376,1.78439883,2345.6,2345.4,6.66416]
[1726613283568,1.78439883,2345.7,2345.5,6.14992498]
[1726613283772,1.78439883,2345.8,2345.6,6.6638]
[1726613284056,1.78439883,2345.9,2345.6,6.66371]
[1726613284256,1.78439883,2345.9,2345.6,8.52642]
[1726613285797,1.78439883,2345.9,2345.6,4.26321]
[1726613285996,1.78439883,2345.9,2345.6,8.52641]
[1726613288004,1.78439883,2345.9,2345.6,4.2632]
[1726613289909,1.78439883,2345.9,2345.6,8.52641]
[1726613290076,1.78439883,2345.9,2345.6,4.2632]
[1726613292721,1.78439883,2345.9,2345.5,4.26346]
[1726613292871,6.04723883,2345.9,2345.5,4.26346]
[1726613293788,6.04723883,2345.9,2345.5,8.52685]
[1726613293980,1.78439883,2345.9,2345.5,8.52685]
[1726613295107,1.78439883,2345.9,2345.5,4.26339]
[1726613296273,1.78439883,2345.9,2345.5,8.52679]
[1726613297114,1.78439883,2345.9,2345.5,4.26339]
[1726613299778,1.78439883,2345.9,2345.5,4.26339]
[1726613300416,1.78439883,2345.9,2345.5,8.52679]
[1726613300619,1.78439883,2345.9,2345.5,4.26339]
[1726613301320,1.78439883,2345.9,2345.6,4.2633]
[1726613303012,1.78439883,2346.0,2345.8,2.2795]
[1726613303412,1.78439883,2346.1,2345.8,2.2795]
[1726613303618,1.78439883,2346.1,2345.9,4.26265]
[1726613304729,1.78439883,2346.2,2345.9,4.26265]
[1726613305107,4.26909883,2346.3,2346.0,0.08524672]
[1726613305308,1.78439883,2346.4,2346.1,6.7001]
[1726613305649,4.17359883,2346.5,2346.1,6.7001]
[1726613306207,1.78439883,2346.5,2346.2,6.14858498]
[1726613306407,1.78439883,2346.6,2346.3,5.20579862]
[1726613306637,1.78439883,2346.6,2346.3,4.34716012]
[1726613306849,4.17359883,2346.7,2346.3,4.34716012]
[1726613307354,4.17359883,2346.7,2346.2,4.26211]
[1726613307856,8.43498883,2346.7,2346.2,4.26211]
[1726613308025,4.26152,2346.6,2346.1,5.4378]
[1726613308357,4.26152,2346.6,2346.1,3.0]
[1726613308358,2.3892,2346.4,2346.1,3.0]
[1726613309157,2.3892,2346.4,2346.1,7.26239]
[1726613312043,6.65114,2346.4,2345.9,7.26269]
[1726613312354,0.8537605,2346.3,2345.9,4.26269]
[1726613312527,6.65114,2346.4,2345.9,4.26269]
[1726613312716,2.3892,2346.4,2346.0,4.26245]
[1726613312914,2.3892,2346.4,2346.1,4.26237]
[1726613315259,2.3892,2346.4,2346.0,4.26256]
[1726613318158,6.65108,2346.4,2345.9,8.52534]
[1726613318466,6.65108,2346.4,2346.0,4.26255]
[1726613324560,2.3892,2346.4,2346.1,4.26235]
[1726613328088,6.65106,2346.4,2345.9,4.26261]
[1726613328292,7.71706034,2346.4,2345.9,4.26261]
[1726613328682,9.50145917,2346.4,2345.9,4.26261]
[1726613329068,9.50145917,2346.4,2346.0,4.26256]
[1726613329369,9.50145917,2346.4,2345.9,4.26261]
[1726613329571,8.43545883,2346.4,2345.9,4.26261]
[1726613330358,8.43545883,2346.4,2346.0,4.26249]
[1726613336679,1.78439883,2346.3,2346.0,4.26249]
[1726613346522,1.78439883,2346.2,2346.0,4.26249]
[1726613352397,1.78439883,2346.1,2346.0,4.26249]
[1726613353230,1.78439883,2346.2,2346.0,4.26249]
[1726613353388,1.78439883,2346.1,2346.0,4.26249]
[1726613354132,1.78439883,2346.2,2346.1,6.62319]
[1726613354333,1.78439883,2346.3,2346.1,6.62319]
[1726613355005,1.78439883,2346.3,2346.2,4.26221]
[1726613357336,1.78439883,2346.4,2346.3,4.26202]
[1726613363230,1.78439883,2346.5,2346.3,4.26202]
[1726613363532,1.78439883,2346.5,2346.3,4.34725197]
[1726613366356,1.78439883,2346.5,2346.4,4.26184]
[1726613367753,1.78439883,2346.5,2346.3,9.93735135]
[1726613367928,1.78439883,2346.5,2346.3,8.52396]
[1726613369262,1.78439883,2346.5,2346.3,4.26194]
[1726613371452,1.78439883,2346.5,2346.3,8.52388]
[1726613372618,1.78439883,2346.6,2346.4,4.26184]
[1726613372821,1.78439883,2346.6,2346.4,4.26173]
[1726613373164,1.78439883,2346.6,2346.4,5.34954601]
[1726613378347,1.78439883,2346.7,2346.4,5.34954601]
[1726613378748,1.78439883,2346.7,2346.4,4.26173]
[1726613379986,1.78439883,2346.7,2346.5,4.26165]
[1726613395401,1.78439883,2346.6,2346.5,4.26165]
[1726613398609,1.78439883,2346.6,2346.4,4.26183]
[1726613398770,2.4728,2346.5,2346.3,8.52382]
[1726613398969,4.25719883,2346.5,2346.3,8.52382]
[1726613399276,4.25719883,2346.5,2346.3,4.2619]
[1726613401108,1.78439883,2346.5,2346.3,4.2619]
[1726613404782,1.78439883,2346.5,2346.3,8.52385]
[1726613405794,1.78439883,2346.5,2346.3,4.2619]
[1726613406702,1.78439883,2346.5,2346.3,8.52385]
[1726613407373,1.78439883,2346.5,2346.3,4.2619]
[1726613409114,1.78439883,2346.5,2346.3,8.52385]
[1726613409316,1.78439883,2346.5,2346.4,4.26184]
[1726613410599,1.78439883,2346.6,2346.5,8.52332]
[1726613410778,1.78756744,2346.8,2346.7,8.5226]
[1726613410978,1.78756744,2346.8,2346.7,5.33994]
[1726613411222,1.78756744,2347.0,2346.8,4.26112]
[1726613411392,2.3785,2346.9,2346.7,1.07864]
[1726613411597,1.78756744,2346.8,2346.6,4.26134]
[1726613411819,1.78756744,2346.8,2346.7,4.26127]
[1726613413197,4.16606744,2346.9,2346.7,4.26127]
[1726613416040,4.16606744,2346.9,2346.7,6.66467]
[1726613416041,1.78756744,2346.9,2346.7,6.66467]
[1726613416241,1.78756744,2346.9,2346.8,1.10112298]
[1726613416543,1.78756744,2346.9,2346.8,5.36224298]
[1726613417346,1.78756744,2347.0,2346.8,5.36224298]
[1726613417546,1.78756744,2347.0,2346.8,4.26112]
[1726613421369,1.78756744,2347.0,2346.9,4.26093]
[1726613421729,1.78756744,2347.1,2346.9,4.26093]
[1726613421928,1.78756744,2347.1,2347.0,4.26075]
[1726613422167,1.78756744,2347.2,2347.0,6.74065]
[1726613422331,2.23419168,2347.4,2347.1,4.26056]
[1726613422332,1.78756744,2347.3,2347.1,4.26056]
[1726613422527,1.78756744,2347.4,2347.2,4.26039]
[1726613423445,4.17476744,2347.5,2347.2,4.26039]
[1726613424069,4.17476744,2347.5,2347.0,12.29863337]
[1726613424272,4.17476744,2347.5,2347.1,4.26057]
[1726613424563,4.17476744,2347.5,2347.2,4.26037]
[1726613425666,0.44615767,2347.4,2347.2,4.26037]
[1726613427085,2.3872,2347.5,2347.2,4.26037]
[1726613427286,2.3872,2347.5,2347.2,4.2603]
[1726613427575,2.3872,2347.5,2347.2,4.26026]
[1726613427576,0.44614333,2347.4,2347.2,4.26026]
[1726613428537,0.44614333,2347.4,2347.2,8.52056]
[1726613428738,0.44614333,2347.4,2347.2,8.52054]
[1726613429472,0.44614333,2347.4,2347.3,4.26021]
[1726613430143,0.44614333,2347.4,2347.3,6.63431]
[1726613436765,0.0393691,2347.6,2347.3,6.63431]
[1726613437207,0.44610556,2347.4,2347.3,6.71950549]
[1726613437378,0.44610556,2347.4,2347.3,6.63431]
[1726613438473,0.44610556,2347.4,2347.3,8.04128255]
[1726613438672,0.44610556,2347.4,2347.3,12.30149255]
[1726613439112,0.0393691,2347.6,2347.4,4.25989]
[1726613439329,0.0393691,2347.6,2347.5,4.25985]
[1726613456932,0.0393691,2347.6,2347.5,8.5197]
[1726613457137,0.0393691,2347.6,2347.5,9.61146]
[1726613459230,0.4854738,2347.6,2347.5,8.5197]
[1726613460250,0.4854738,2347.6,2347.5,4.25985]
[1726613460816,2.9455738,2347.6,2347.3,4.26011]
[1726613461018,2.9455738,2347.6,2347.2,4.2603]
[1726613461313,2.4994691,2347.6,2347.2,4.26029]
[1726613461518,2.4994691,2347.6,2347.3,4.26019]
[1726613461755,0.44607062,2347.5,2347.3,4.26019]
[1726613463108,2.4994691,2347.6,2347.3,4.26019]
[1726613463414,7.8370008,2347.6,2347.0,6.61191]
[1726613463618,2.4601,2347.5,2347.2,4.26037]
[1726613464360,2.4601,2347.5,2347.2,4.2603]
[1726613464518,2.4601,2347.5,2347.2,4.26027]
[1726613464932,2.4601,2347.5,2347.2,8.52055]
[1726613465136,2.4601,2347.5,2347.2,4.26027]
[1726613465656,4.24766744,2347.5,2347.2,4.26027]
[1726613466458,7.42203302,2347.5,2347.0,4.2606]
[1726613466633,4.24766744,2347.3,2346.9,4.26082]
[1726613466839,2.4601,2347.2,2347.0,4.26074]
[1726613467149,4.24766744,2347.2,2347.0,4.26074]
[1726613467713,4.24766744,2347.2,2346.9,4.26084]
[1726613473931,1.78756744,2347.1,2346.8,4.26101]
[1726613474332,8.50815744,2347.2,2346.8,4.26101]
[1726613474557,1.78756744,2347.1,2346.8,4.26101]
[1726613474758,1.78756744,2347.1,2346.6,9.61267]
[1726613474759,1.78756744,2347.1,2346.7,4.26127]
[1726613475069,2.3652,2347.0,2346.7,4.26127]
[1726613475277,4.15276744,2347.0,2346.6,6.61266]
[1726613475431,4.15276744,2347.0,2346.0,7.48928395]
[1726613475432,9.0000258,2346.9,2346.4,4.26174]
[1726613475649,2.3317,2346.8,2346.4,4.26174]
[1726613475951,2.3317,2346.8,2346.2,4.26212]
[1726613475952,2.4704,2346.7,2346.2,4.26212]
[1726613476148,6.73171,2346.7,2346.2,4.26211]
[1726613476352,4.25796744,2346.7,2346.3,4.26201]
[1726613476647,2.4704,2346.7,2346.4,4.26183]
[1726613479099,2.4704,2346.7,2346.3,4.26202]
[1726613480315,2.2833,2346.9,2346.5,4.26157]
[1726613480595,2.2833,2346.9,2346.4,4.20936498]
[1726613480596,4.26096,2346.9,2346.4,4.26183]
[1726613480767,2.2833,2346.8,2346.4,4.26183]
[1726613482460,0.44609385,2346.7,2346.4,4.26183]
[1726613485366,2.2833,2346.8,2346.4,4.26183]
[1726613485895,0.44609011,2346.6,2346.4,4.26183]
[1726613487869,6.54443,2346.8,2346.4,4.26183]
[1726613489801,6.54443,2346.8,2346.4,8.52357]
[1726613489999,2.2833,2346.8,2346.4,4.26174]
[1726613490486,2.4352,2347.0,2346.5,4.26155]
[1726613490714,6.69604,2347.0,2346.6,4.26146]
[1726613499845,2.4352,2347.0,2346.6,4.2614]
[1726613500197,6.696,2347.0,2346.6,4.2614]
[1726613502457,6.696,2347.0,2346.5,4.26163]
[1726613502739,8.23798446,2347.0,2346.5,4.26163]
[1726613503338,0.44609746,2346.9,2346.5,4.26163]
[1726613503943,4.70715746,2346.9,2346.4,6.5263]
[1726613504155,4.26138,2346.7,2346.2,4.26206]
[1726613504447,2.887638,2346.6,2346.2,4.26206]
[1726613505166,6.72348,2346.4,2345.9,2.3321]
[1726613505460,4.26203,2346.3,2345.8,8.52562]
[1726613505664,7.80584504,2346.4,2345.8,8.52562]
[1726613505835,7.80581504,2346.4,2345.8,8.52555]
[1726613506026,7.80580504,2346.4,2345.9,4.26275]
[1726613506451,7.80580504,2346.4,2345.8,8.52561]
[1726613506624,5.41002375,2346.3,2345.8,4.26277]
[1726613507025,3.54386504,2346.4,2345.9,4.26272]
[1726613507420,7.80573504,2346.4,2345.8,8.52559]
[1726613507625,12.06774504,2346.4,2345.8,8.52561]
[1726613508164,4.26222,2346.2,2345.8,4.26277]
[1726613508967,2.3562,2346.3,2345.8,8.5256]
[1726613509178,2.3562,2346.3,2345.9,4.26273]
[1726613510534,6.61826,2346.3,2345.8,10.5280365]
[1726613512433,2.3562,2346.3,2345.9,4.26272]
[1726613516644,4.14376744,2346.3,2345.9,4.26272]
[1726613517075,2.3562,2346.3,2345.9,4.26272]
[1726613517572,4.14376744,2346.3,2345.9,4.26272]
[1726613519467,4.14376744,2346.3,2346.0,4.26255]
[1726613519668,2.3562,2346.3,2346.0,4.26255]
[1726613519877,4.14376744,2346.3,2346.0,4.26255]
[1726613520179,2.3562,2346.3,2346.0,4.26255]
[1726613520751,2.3562,2346.3,2346.0,8.52504]
[1726613521070,4.14376744,2346.3,2346.0,8.52497]
[1726613521273,4.14376744,2346.3,2346.0,5.31521865]
[1726613522981,4.14376744,2346.3,2346.0,4.26248]
[1726613525793,8.40579744,2346.3,2345.8,4.26282]
[1726613525993,2.3788,2346.2,2345.8,4.26282]
[1726613526144,2.3788,2346.2,2345.8,8.52567]
[1726613526548,2.3788,2346.2,2345.8,4.26282]
[1726613526782,2.3788,2346.2,2345.8,8.52566]
[1726613527079,2.3788,2346.2,2345.8,4.26282]
[1726613527289,2.3788,2346.2,2345.8,8.52566]
[1726613528311,2.3788,2346.2,2345.8,4.26282]
[1726613529905,2.3788,2346.2,2345.8,8.52567]
[1726613530324,2.3788,2346.2,2345.8,4.26282]
[1726613530523,2.2531,2346.0,2345.6,4.2632]
[1726613530982,2.2531,2346.0,2345.6,8.52641]
[1726613531182,2.2531,2346.0,2345.6,4.2632]
[1726613531383,3.60160045,2346.0,2345.6,4.2632]
[1726613531696,3.60160045,2346.0,2345.6,8.52641]
[1726613532387,7.86419045,2346.0,2345.6,4.2632]
[1726613532713,3.60160045,2346.0,2345.6,8.5264]
[1726613532917,2.2531,2346.0,2345.6,8.5264]
[1726613533121,2.2531,2346.0,2345.6,4.2632]
[1726613540019,2.2531,2346.0,2345.7,4.26298]
[1726613546730,4.04066744,2346.0,2345.7,4.26298]
[1726613547121,8.30324744,2346.0,2345.6,8.5264]
[1726613547348,9.5453328,2346.0,2345.6,4.2632]
[1726613549496,1.78756744,2345.9,2345.6,4.2632]
[1726613553734,4.24926744,2345.8,2345.4,4.2635]
[1726613553937,4.24926744,2345.8,2345.5,4.26345]
[1726613554240,2.4617,2345.8,2345.5,4.26345]
[1726613554539,4.24926744,2345.8,2345.5,4.26345]
[1726613555529,6.4939912,2345.9,2345.7,4.26311]
[1726613555530,1.78756744,2345.9,2345.7,4.26311]
[1726613555707,1.78756744,2346.0,2345.7,4.26311]
[1726613556101,2.3976,2345.9,2345.6,11.653395]
[1726613556435,2.3976,2345.9,2345.6,4.2632]
[1726613556633,4.18516744,2345.9,2345.6,4.2632]
[1726613557217,4.18516744,2345.9,2345.6,8.52642]
[1726613557598,4.18516744,2345.9,2345.6,8.52641]
[1726613559424,4.18516744,2345.9,2345.7,4.26308]
[1726613559943,1.78756744,2345.9,2345.8,4.26293]
[1726613560100,1.78756744,2346.0,2345.8,4.26293]
[1726613561205,4.20046744,2346.1,2345.8,4.26293]
[1726613561639,1.78756744,2346.0,2345.8,4.26293]
[1726613563633,1.78756744,2346.0,2345.9,4.26275]
[1726613564615,1.78756744,2346.0,2345.8,4.26292]
[1726613564811,1.78756744,2346.0,2345.8,5.13124462]
[1726613567775,1.78756744,2346.0,2345.8,5.13117462]
[1726613569508,1.78756744,2346.0,2345.8,9.39401462]
[1726613569681,1.78756744,2346.0,2345.8,5.13116462]
[1726613573305,1.78756744,2346.0,2345.8,4.26284]
[1726613573451,1.78756744,2345.9,2345.7,4.26308]
[1726613579412,1.78756744,2345.9,2345.6,4.26319]
[1726613579413,4.21216744,2345.8,2345.6,4.26319]
[1726613579618,2.4246,2345.8,2345.6,4.26319]
[1726613580997,4.21216744,2345.8,2345.5,4.26345]
[1726613581226,2.4246,2345.8,2345.5,4.26345]
[1726613581533,4.21216744,2345.8,2345.5,4.26345]
[1726613583724,2.4246,2345.8,2345.5,4.26345]
[1726613583926,4.21216744,2345.8,2345.5,4.26345]
[1726613584832,1.78756744,2345.8,2345.6,4.26327]
[1726613585016,1.78756744,2345.8,2345.7,4.26311]
[1726613585836,1.78756744,2345.9,2345.7,4.26311]
[1726613587737,1.78756744,2345.8,2345.7,4.26311]
[1726613588537,1.78756744,2345.9,2345.7,4.26311]
[1726613588910,1.78756744,2345.8,2345.5,8.52681]
[1726613589241,1.78756744,2345.8,2345.6,4.2633]
[1726613590638,1.78756744,2345.9,2345.6,4.2633]
[1726613592461,1.78756744,2345.9,2345.7,4.26311]
[1726613598198,1.78756744,2345.9,2345.7,4.26298]
[1726613601655,1.78756744,2345.9,2345.7,8.526]
[1726613602089,1.78756744,2345.9,2345.7,4.26298]
[1726613602698,1.78756744,2345.8,2345.7,4.26298]
[1726613603266,2.23848577,2346.0,2345.7,4.26298]
[1726613603267,1.78756744,2345.9,2345.7,4.26298]
[1726613604402,1.78756744,2345.8,2345.7,4.26298]
[1726613606398,1.78756744,2345.9,2345.7,4.26298]
[1726613606976,1.78756744,2345.8,2345.7,4.26298]
[1726613607606,1.78756744,2345.9,2345.7,4.26298]
[1726613611582,1.78756744,2345.8,2345.7,4.26298]
[1726613615215,1.78756744,2345.9,2345.7,4.26298]
[1726613615511,1.78756744,2345.8,2345.7,4.26298]
[1726613639876,2.3027,2345.7,2345.4,4.26358]
[1726613640050,4.0945019,2345.7,2345.4,4.26358]
[1726613640546,1.7918019,2345.6,2345.3,4.26382]
[1726613640747,1.7918019,2345.4,2345.0,4.26436]
[1726613640979,2.3027,2345.2,2344.8,8.5686391]
[1726613641190,1.7918019,2345.1,2344.8,4.3039991]
[1726613641511,1.7918019,2345.1,2344.8,0.0393691]
[1726613641709,3.04026018,2345.1,2344.8,0.0393691]
[1726613641912,3.04026018,2345.1,2344.8,4.3040791]
[1726613642504,1.24845828,2345.1,2344.8,4.3040791]
[1726613642801,4.0945019,2345.2,2344.8,4.3040791]
[1726613643300,2.3027,2345.2,2344.8,4.3040791]
[1726613644114,4.0945019,2345.2,2344.8,4.3040791]
[1726613644309,2.3027,2345.2,2344.8,4.3040791]
[1726613645965,2.43646498,2344.9,2344.8,0.0393691]
[1726613646204,10.99383735,2344.9,2344.8,0.0393691]
[1726613646466,10.53686836,2344.9,2344.8,0.0393691]
[1726613647110,13.01865148,2344.9,2344.8,0.0393691]
[1726613647312,14.80014164,2344.9,2344.8,0.0393691]
[1726613648117,14.80029624,2344.9,2344.8,0.0393691]
[1726613649212,13.01865148,2344.9,2344.8,0.0393691]
[1726613650901,8.75408148,2344.9,2344.8,0.0393691]
[1726613651312,13.01865148,2344.9,2344.8,0.0393691]
[1726613651490,8.75408148,2344.9,2344.8,0.0393691]
[1726613651812,13.01865148,2344.9,2344.8,0.0393691]
[1726613652523,8.75408148,2344.9,2344.8,0.0393691]
[1726613653193,13.01865148,2344.9,2344.8,0.0393691]
[1726613653604,8.75408148,2344.9,2344.8,0.0393691]
[1726613653803,4.26451,2345.0,2344.8,0.0393691]
[1726613654136,2.3028,2345.1,2344.8,0.0393691]
[1726613654998,6.56703,2345.1,2344.8,0.0393691]
[1726613661133,4.26423,2345.1,2344.8,0.0393691]